bitfinex/quotes_ETHUSD_20260203
["timestamp","ask_amount","ask_price","bid_price","bid_amount"]
[1770129260053,0.02178507,2295.4,2293.9,1.37064617]
[1770129260261,0.02178507,2294.4,2293.9,0.555]
[1770129260464,0.02178507,2295.0,2293.9,1.64484367]
[1770129260865,0.02178507,2294.8,2293.9,1.64484367]
[1770129261069,0.02178507,2295.0,2293.9,1.64484367]
[1770129261269,0.02178507,2294.5,2293.9,0.555]
[1770129261503,1.11163205,2293.9,2293.4,0.555]
[1770129261718,0.02178507,2293.5,2292.7,0.001]
[1770129261989,0.02178507,2293.3,2292.7,0.001]
[1770129262192,0.02178507,2293.0,2292.6,1e-08]
[1770129262355,0.02178507,2292.5,2292.1,1.11]
[1770129262556,0.02178507,2292.5,2291.7,1.09085845]
[1770129262557,0.02178507,2292.3,2291.7,1.09085845]
[1770129262764,0.02178507,2293.2,2292.1,1.09070284]
[1770129262980,2.34797564,2293.6,2292.1,13.83330477]
[1770129262981,0.02178507,2293.6,2292.1,13.83330477]
[1770129263178,0.02178507,2293.5,2292.1,13.83330477]
[1770129263377,0.02178507,2293.5,2292.1,1.63605871]
[1770129263602,0.02178507,2293.3,2292.2,0.914]
[1770129263804,0.02178507,2292.9,2292.2,0.914]
[1770129264006,0.02178507,2292.9,2292.1,0.555]
[1770129264007,0.02178507,2292.7,2292.1,0.555]
[1770129264190,0.02178507,2292.5,2292.1,0.555]
[1770129264368,0.02178507,2292.3,2291.4,0.914]
[1770129264570,0.02178507,2292.5,2291.9,1.09077391]
[1770129264796,0.02178507,2292.5,2291.9,1.64579047]
[1770129264797,0.02178507,2292.4,2291.9,1.64579047]
[1770129265002,0.02178507,2292.4,2291.9,0.555]
[1770129265170,0.02178507,2292.6,2292.0,1.09071368]
[1770129265376,0.02178507,2292.5,2292.0,1.09071368]
[1770129265576,0.02178507,2292.5,2292.0,1.69161873]
[1770129265773,0.02178507,2292.5,2292.0,0.555]
[1770129266013,0.02178507,2292.0,2291.5,1.09096622]
[1770129266181,0.02178507,2292.1,2291.6,1.09091198]
[1770129266503,0.02178507,2292.1,2291.5,4.36393242]
[1770129266678,0.02178507,2292.1,2291.7,1.09089213]
[1770129267001,0.02178507,2292.6,2292.0,1.09074349]
[1770129267193,0.02178507,2292.7,2292.0,1.09074349]
[1770129267373,0.02178507,2293.0,2292.0,1.09074349]
[1770129267574,0.02178507,2292.7,2291.8,1.09084562]
[1770129267780,0.02178507,2292.7,2291.9,0.60092281]
[1770129268113,1.09027474,2293.0,2291.9,1.15592281]
[1770129268310,0.02178507,2292.9,2291.9,1.15592281]
[1770129268793,0.02178507,2292.4,2291.9,1.15592281]
[1770129268998,0.02178507,2292.2,2291.7,0.555]
[1770129269214,0.02178507,2291.9,2291.7,0.34183992]
[1770129269398,0.02178507,2292.3,2291.7,1.43272125]
[1770129269716,0.02178507,2292.3,2291.7,0.34183992]
[1770129269717,0.02178507,2292.2,2291.7,0.34183992]
[1770129269893,0.02178507,2292.0,2291.7,0.34183992]
[1770129270092,0.02178507,2292.1,2291.9,0.001]
[1770129270296,0.02178507,2292.0,2291.9,0.001]
[1770129270613,0.02178507,2292.4,2291.6,0.001]
[1770129270614,1.11237795,2292.4,2291.6,0.001]
[1770129270794,0.02178507,2292.2,2291.7,1.0908922]
[1770129270987,0.02178507,2292.2,2291.6,0.001]
[1770129271187,0.02178507,2292.0,2291.6,0.556]
[1770129271389,0.02178507,2291.8,2291.6,0.556]
[1770129271627,1.11244309,2292.2,2291.6,1.64691188]
[1770129271835,0.02288507,2292.6,2291.6,1.64692786]
[1770129271836,1.09159949,2292.6,2291.6,1.64692786]
[1770129271988,0.02178507,2292.5,2291.6,1.64692786]
[1770129272414,0.02178507,2292.5,2291.6,2.20192786]
[1770129272798,0.02288507,2292.6,2291.6,2.20192786]
[1770129272997,0.0011,2292.6,2291.7,13.76781518]
[1770129273294,0.0011,2292.6,2291.7,14.32281518]
[1770129273497,0.02178507,2293.7,2292.0,12.19724606]
[1770129273822,0.02178507,2293.5,2292.0,12.19724606]
[1770129274515,0.02178507,2293.5,2292.0,12.75224606]
[1770129274819,0.02178507,2293.5,2292.2,12.19724606]
[1770129275114,0.02178507,2293.7,2292.2,12.19724606]
[1770129275620,0.02178507,2293.4,2292.3,1.09060768]
[1770129275816,0.02178507,2293.3,2292.3,1.09060768]
[1770129275989,0.02178507,2293.5,2292.4,13.11124606]
[1770129276317,0.02178507,2294.4,2292.5,13.61743143]
[1770129276318,1.11148954,2294.2,2292.5,13.61743143]
[1770129276519,0.02178507,2294.2,2292.5,13.61743143]
[1770129276822,0.02178507,2293.6,2292.5,15.08643143]
[1770129277020,0.02178507,2293.3,2292.5,1.97518537]
[1770129277320,0.02178507,2293.3,2292.5,0.555]
[1770129277624,0.02178507,2293.1,2292.6,1.09046497]
[1770129278013,0.02178507,2292.9,2292.5,1.11]
[1770129278425,0.02178507,2292.7,2292.2,0.341]
[1770129278595,0.02178507,2293.4,2292.5,1.09050022]
[1770129278796,0.02178507,2293.7,2292.5,1.09050022]
[1770129279011,0.02178507,2293.6,2292.5,1.09050022]
[1770129279323,0.02178507,2293.7,2292.5,13.28774628]
[1770129279512,0.02178507,2293.3,2292.6,2.67898276]
[1770129279693,0.02178507,2293.3,2292.7,1.09041741]
[1770129279890,0.02178507,2293.5,2292.7,1.09041741]
[1770129280120,0.02178507,2293.4,2292.7,1.09041741]
[1770129280327,0.02178507,2293.8,2292.8,12.19724606]
[1770129280529,1.14949332,2294.9,2293.0,12.19724606]
[1770129280721,0.02178507,2295.0,2293.2,12.19724606]
[1770129281032,4.37834839,2295.4,2293.6,12.19724606]
[1770129281033,0.02178507,2295.4,2293.6,12.19724606]
[1770129281342,1.11066306,2296.0,2294.0,12.19724606]
[1770129281576,0.02178507,2295.2,2294.0,12.19724606]
[1770129281850,0.02178507,2294.8,2294.0,13.28702465]
[1770129282127,0.02178507,2295.1,2294.0,13.84202465]
[1770129282343,0.02178507,2295.1,2294.0,0.555]
[1770129282344,0.02178507,2294.5,2294.0,0.555]
[1770129282519,0.02178507,2294.3,2294.0,0.555]
[1770129282834,0.02178507,2294.3,2293.5,0.914]
[1770129282835,0.02178507,2294.3,2293.7,1.08991867]
[1770129283023,0.02178507,2294.3,2293.7,1.08991916]
[1770129283227,0.02178507,2293.9,2293.2,0.555]
[1770129283420,0.02178507,2293.6,2293.2,0.555]
[1770129283621,0.02178507,2293.6,2292.7,6.67790241]
[1770129283622,1.11178811,2293.6,2292.2,0.896]
[1770129283832,0.5711382,2293.5,2292.2,0.896]
[1770129284001,0.02178507,2293.6,2292.9,1.09028756]
[1770129284203,0.02178507,2293.5,2292.9,0.555]
[1770129284438,0.02178507,2293.7,2292.9,0.555]
[1770129284732,0.02178507,2293.5,2292.9,0.555]
[1770129284906,0.02178507,2293.4,2292.9,0.555]
[1770129285100,0.02178507,2293.3,2292.9,0.555]
[1770129285302,0.02178507,2293.7,2292.9,1.11]
[1770129285637,0.57324933,2293.7,2292.9,2.20031772]
[1770129285833,1.08968415,2294.3,2292.9,14.39756378]
[1770129286204,1.11138204,2294.5,2292.9,14.39756378]
[1770129286400,0.02178507,2294.9,2293.1,12.19724606]
[1770129286600,0.0011,2294.8,2293.3,12.19724606]
[1770129286835,0.02178507,2294.5,2293.5,12.19724606]
[1770129287146,0.02178507,2294.3,2293.5,12.19724606]
[1770129287435,0.02178507,2294.1,2293.5,0.555]
[1770129287636,1.11154111,2294.1,2293.5,0.555]
[1770129287812,0.02178507,2294.0,2293.5,0.555]
[1770129288014,0.02178507,2294.1,2293.5,0.555]
[1770129288207,0.02178507,2294.4,2293.5,1.64503597]
[1770129288422,0.0011,2294.8,2293.5,13.84228203]
[1770129288621,0.0011,2294.8,2293.5,14.39728203]
[1770129288832,0.0011,2294.8,2293.7,12.19724606]
[1770129289034,1.09053865,2294.8,2293.7,12.19724606]
[1770129289214,1.11232372,2294.8,2293.7,12.19724606]
[1770129289404,0.02288507,2294.8,2293.7,12.19724606]
[1770129289607,0.0011,2294.8,2293.8,1.08989449]
[1770129289932,0.0011,2294.8,2293.7,13.84218252]
[1770129289933,0.02178507,2294.5,2293.7,13.84218252]
[1770129290402,0.02288507,2294.8,2293.7,13.84218252]
[1770129290603,0.02178507,2294.4,2293.7,14.39718252]
[1770129291039,0.02178507,2294.4,2293.7,1.11]
[1770129291216,0.02178507,2294.1,2293.7,1.11]
[1770129291403,0.02178507,2294.5,2293.7,2.19992981]
[1770129291603,1.08960948,2294.4,2293.7,1.11]
[1770129291836,0.54697417,2294.3,2293.7,2.75491726]
[1770129292036,0.02178507,2294.4,2293.7,1.665]
[1770129292238,0.02178507,2294.4,2293.7,2.75493471]
[1770129292424,0.0011,2294.8,2293.7,15.48276053]
[1770129292623,0.0011,2296.1,2294.3,12.99193092]
[1770129292934,0.0011,2296.1,2294.9,12.99193092]
[1770129293125,1.08870778,2296.4,2294.9,12.99193092]
[1770129293436,1.08870778,2296.4,2295.0,0.914]
[1770129293437,0.02178507,2296.2,2295.0,0.914]
[1770129293730,1.63978906,2296.2,2295.3,1.08918224]
[1770129294044,0.55100016,2296.2,2295.3,1.08918224]
[1770129294347,1.08982173,2296.3,2295.3,14.08111316]
[1770129294632,0.0011,2296.3,2295.3,14.08111316]
[1770129294837,1.11007076,2297.2,2295.3,14.08111316]
[1770129295032,5.90464176,2297.7,2295.3,14.08111316]
[1770129295033,1.08790252,2298.0,2296.1,12.99193092]
[1770129295237,0.02178507,2297.8,2296.3,12.99193092]
[1770129295405,0.02178507,2297.7,2296.3,12.99193092]
[1770129295602,1.08818664,2297.4,2296.4,0.914]
[1770129295841,1.08817407,2297.5,2296.5,1.0886131]
[1770129296013,1.10995914,2297.5,2296.5,0.555]
[1770129296222,0.54842005,2297.4,2296.5,0.555]
[1770129297138,1.08812547,2297.6,2296.5,14.10193092]
[1770129297341,1.08801839,2297.8,2296.5,14.10193092]
[1770129297526,1.10980346,2297.8,2296.5,14.10193092]
[1770129297851,0.02178507,2297.4,2296.6,0.914]
[1770129298008,0.02178507,2297.6,2296.6,0.914]
[1770129298211,0.02178507,2297.5,2296.6,1.469]
[1770129298737,0.02178507,2297.6,2296.6,1.469]
[1770129298911,0.0011,2297.2,2296.6,1.469]
[1770129299111,0.02178507,2297.6,2296.6,1.469]
[1770129299112,4.35085503,2298.4,2296.7,12.99193092]
[1770129299310,4.35085503,2298.4,2296.8,0.913]
[1770129299311,0.02178507,2298.2,2296.8,0.913]
[1770129299512,0.0011,2297.4,2296.8,12.99193092]
[1770129299821,0.0011,2297.4,2296.6,3.1115606]
[1770129300026,0.0011,2297.4,2296.6,2.023]
[1770129300363,0.02178507,2297.1,2296.6,1.665]
[1770129300546,0.02178507,2297.0,2295.6,14.08096651]
[1770129300745,0.02178507,2296.5,2295.5,14.08101505]
[1770129300969,0.02178507,2296.6,2295.5,14.08101505]
[1770129301117,0.02178507,2296.1,2295.4,0.913]
[1770129301310,0.02178507,2295.8,2295.3,0.555]
[1770129301540,0.02178507,2295.1,2294.6,0.001]
[1770129301855,1.11110968,2295.0,2293.7,1.666]
[1770129302037,0.54901932,2294.9,2293.7,1.666]
[1770129302356,0.02178507,2294.0,2293.7,1.666]
[1770129302516,0.02178507,2293.7,2293.5,0.34713659]
[1770129302708,0.02178507,2293.7,2292.9,2.75531286]
[1770129302913,0.02178507,2294.8,2292.9,16.03094415]
[1770129303221,0.02178507,2293.7,2292.9,14.94063129]
[1770129303421,0.02178507,2293.0,2292.2,0.896]
[1770129303624,0.02178507,2292.3,2292.0,0.46726381]
[1770129303944,0.02178507,2292.6,2291.7,0.555]
[1770129303945,0.02178507,2292.2,2291.7,0.555]
[1770129304145,0.02178507,2292.3,2291.8,1.09083888]
[1770129304344,0.02178507,2292.3,2291.7,1.6458596]
[1770129304345,0.02178507,2292.0,2291.7,1.6458596]
[1770129304550,0.02178507,2293.2,2292.0,14.09071668]
[1770129304720,0.02178507,2292.8,2291.8,1.09081269]
[1770129304914,0.02178507,2292.8,2292.0,1.09073668]
[1770129304915,0.02178507,2292.6,2292.0,1.09073668]
[1770129305117,0.02178507,2292.4,2291.7,1.11]
[1770129305316,0.02178507,2292.3,2291.7,2.20087894]
[1770129305514,0.02178507,2292.6,2291.7,1.53238789]
[1770129305734,4.38193331,2293.6,2292.0,1.0907334]
[1770129305936,0.02178507,2292.5,2291.7,15.08738789]
[1770129306138,0.02178507,2292.5,2290.4,0.02178507]
[1770129306139,0.02178507,2291.8,2291.1,13.0]
[1770129306318,0.02178507,2292.0,2291.1,13.0]
[1770129306528,0.02178507,2293.2,2291.7,1.09087886]
[1770129306846,0.02178507,2293.2,2290.8,0.003]
[1770129306847,0.02178507,2292.0,2290.8,0.003]
[1770129307047,0.02178507,2291.8,2291.7,0.555]
[1770129307221,0.02178507,2291.9,2291.0,13.0]
[1770129307418,0.02178507,2292.2,2291.6,1.09093522]
[1770129307620,0.02178507,2292.1,2291.6,1.0909399]
[1770129307821,0.02178507,2293.2,2291.7,15.00488148]
[1770129308038,0.02178507,2293.2,2291.8,14.93684693]
[1770129308039,0.02178507,2292.8,2291.8,14.93684693]
[1770129308240,0.02178507,2292.7,2291.8,14.93684693]
[1770129308724,0.02178507,2292.6,2291.8,14.93684693]
[1770129309024,0.02178507,2292.6,2291.8,15.49184693]
[1770129309350,0.02178507,2292.4,2291.8,13.555]
[1770129309558,0.02178507,2292.2,2291.8,0.555]
[1770129309741,0.02178507,2293.5,2291.8,13.555]
[1770129309948,0.02178507,2293.2,2292.0,13.0]
[1770129310167,1.09001278,2293.6,2292.0,13.0]
[1770129310168,0.02178507,2293.7,2292.2,13.0]
[1770129310325,0.02178507,2294.0,2292.4,13.0]
[1770129310524,0.02178507,2293.8,2292.4,13.0]
[1770129310958,0.02178507,2292.9,2292.4,13.0]
[1770129311124,0.02178507,2293.3,2292.4,13.0]
[1770129311125,0.02178507,2293.2,2292.4,13.0]
[1770129311328,0.02178507,2293.1,2292.4,13.555]
[1770129311547,0.02178507,2292.9,2292.4,0.555]
[1770129311747,0.02178507,2293.1,2292.4,0.555]
[1770129311968,0.02178507,2293.0,2292.4,0.555]
[1770129312130,0.02178507,2293.1,2292.4,0.555]
[1770129312329,0.0011,2293.0,2292.4,1.11]
[1770129312831,0.02288507,2293.0,2292.4,1.11]
[1770129313061,0.02178507,2292.6,2292.0,0.555]
[1770129313358,0.02178507,2292.4,2292.0,1.64573245]
[1770129313568,0.02178507,2292.5,2292.0,0.555]
[1770129313862,0.02178507,2292.4,2292.0,1.64570834]
[1770129314032,0.02178507,2292.7,2292.0,1.86587917]
[1770129314231,1.09032478,2292.9,2292.0,1.8659107]
[1770129314462,0.02178507,2292.8,2292.0,2.4209107]
[1770129314634,0.02178507,2292.6,2292.0,1.11]
[1770129314837,0.02178507,2291.8,2291.1,13.914]
[1770129315038,0.02178507,2291.9,2291.2,4.36450099]
[1770129315340,0.02178507,2290.9,2290.1,1.09162187]
[1770129315640,0.02178507,2290.9,2289.3,1.20417352]
[1770129315641,0.02178507,2289.6,2289.3,1.20417352]
[1770129315840,0.02178507,2290.3,2289.3,14.76140562]
[1770129316166,0.02178507,2290.2,2289.3,14.76140562]
[1770129316334,0.02178507,2289.6,2289.3,0.1121454]
[1770129316660,0.02178507,2288.8,2288.6,0.0008]
[1770129316971,1.11318008,2290.7,2288.6,14.09316027]
[1770129317198,0.0016,2290.8,2289.0,13.0]
[1770129317486,0.02178507,2290.5,2289.2,13.0]
[1770129317768,0.0016,2290.8,2289.6,13.0]
[1770129318063,0.02178507,2291.6,2289.6,13.0]
[1770129318064,0.01309929,2291.7,2290.1,12.99193092]
[1770129318270,0.01309929,2291.8,2290.3,12.99193092]
[1770129318438,0.01309929,2291.5,2290.3,12.99193092]
[1770129318644,0.01309929,2291.2,2290.3,13.54693092]
[1770129318959,0.01309929,2291.5,2290.3,13.54693092]
[1770129319129,0.82199017,2291.9,2290.4,14.56794332]
[1770129319465,0.01309929,2291.4,2290.4,14.56794332]
[1770129319769,0.01309929,2291.2,2290.4,15.12294332]
[1770129320073,0.83508946,2291.9,2290.5,14.08339566]
[1770129320389,0.0011,2293.0,2291.3,12.93848198]
[1770129320540,0.0011,2293.0,2291.7,12.93848198]
[1770129320738,0.01309929,2293.5,2291.6,12.93848198]
[1770129320739,0.01419929,2293.2,2291.6,12.93848198]
[1770129320941,0.01309929,2293.6,2291.6,12.93848198]
[1770129320942,0.2968193,2293.7,2292.1,12.93848198]
[1770129321166,0.01309929,2293.5,2292.1,12.93848198]
[1770129321333,0.01309929,2293.9,2292.3,12.93848198]
[1770129321538,0.0011,2294.2,2292.7,12.93848198]
[1770129321833,0.01309929,2295.8,2293.6,12.93848198]
[1770129322032,0.01309929,2295.5,2293.8,7.93848198]
[1770129322263,4.35410389,2296.7,2294.6,12.93848198]
[1770129322477,1.08832876,2297.1,2295.2,12.93848198]
[1770129322632,1.08832876,2297.1,2295.4,12.93848198]
[1770129322833,0.01309929,2296.3,2295.4,0.914]
[1770129323080,0.01309929,2296.1,2295.4,0.555]
[1770129323435,0.01309929,2295.6,2293.9,12.93848198]
[1770129323672,0.01309929,2295.3,2294.0,1.2938482]
[1770129323965,0.01309929,2295.5,2293.3,1.09013212]
[1770129323966,0.01309929,2294.2,2293.3,1.09013212]
[1770129324171,0.01309929,2293.8,2293.2,14.0286422]
[1770129324344,0.01309929,2294.2,2293.2,14.0286422]
[1770129324345,0.01309929,2294.7,2293.2,15.86757828]
[1770129324665,0.01309929,2294.1,2293.2,15.86757828]
[1770129325056,0.01309929,2294.1,2293.2,14.02865481]
[1770129325057,0.01309929,2294.0,2293.2,14.02865481]
[1770129325365,4.37001807,2295.3,2293.2,14.58365481]
[1770129325535,0.01309929,2294.5,2293.2,14.58365481]
[1770129325738,0.01309929,2294.2,2293.2,14.58365481]
[1770129325934,0.01309929,2294.4,2293.2,14.58365481]
[1770129325935,0.01309929,2294.4,2293.4,14.02856657]
[1770129326136,1.10228153,2295.3,2293.4,16.01435706]
[1770129326335,1.08885017,2296.0,2293.6,14.98719598]
[1770129326533,0.01309929,2295.9,2294.8,0.001]
[1770129326744,0.01309929,2294.9,2293.5,12.93848198]
[1770129326967,0.01309929,2294.4,2293.5,12.93848198]
[1770129327163,0.01309929,2293.8,2293.4,0.54080071]
[1770129327362,0.01309929,2293.6,2293.2,0.555]
[1770129327672,0.01309929,2294.0,2293.3,1.0901217]
[1770129327886,0.01309929,2295.0,2293.3,1.0901217]
[1770129328171,1.1027611,2294.3,2293.3,1.0901217]
[1770129328369,0.01309929,2295.0,2293.3,1.6451217]
[1770129328539,0.01309929,2294.3,2293.3,1.6451217]
[1770129328745,0.01309929,2294.4,2293.3,1.6451217]
[1770129329146,0.01309929,2294.1,2293.3,0.555]
[1770129329369,0.01309929,2294.5,2293.3,0.555]
[1770129329370,0.01309929,2295.0,2293.3,14.12819527]
[1770129329546,0.01309929,2294.3,2293.3,14.04848198]
[1770129329869,0.01309929,2294.8,2293.3,14.04848198]
[1770129330069,1.1024525,2295.0,2293.5,12.93848198]
[1770129330070,0.01309929,2295.0,2293.5,12.93848198]
[1770129330271,0.01309929,2295.7,2293.5,12.93848198]
[1770129330486,0.01309929,2295.2,2293.7,12.93848198]
[1770129330784,1.10213919,2295.6,2293.7,12.93848198]
[1770129330990,1.10197973,2296.0,2294.1,12.93848198]
[1770129331175,1.10300336,2296.1,2294.3,12.93848198]
[1770129331343,1.08990407,2296.1,2294.3,12.93848198]
[1770129331543,0.54580534,2296.0,2294.4,14.32504011]
[1770129331750,0.01419929,2297.3,2295.1,0.01309929]
[1770129331986,0.0011,2297.3,2295.7,12.95158127]
[1770129332285,1.38752806,2298.2,2296.4,0.01309929]
[1770129332576,0.01309929,2297.8,2296.5,12.93848198]
[1770129332743,0.01309929,2297.6,2296.5,0.555]
[1770129332941,0.01309929,2298.0,2296.5,13.49348198]
[1770129333144,0.01419929,2298.5,2296.5,14.93423018]
[1770129333355,0.01309929,2297.9,2296.5,14.93423018]
[1770129333553,0.0011,2298.4,2296.9,12.95158127]
[1770129333762,1.08882616,2298.4,2296.9,13.50658127]
[1770129333976,0.54405938,2298.3,2297.2,1.08828138]
[1770129334197,1.63183927,2298.3,2297.3,12.93848198]
[1770129334350,0.01309929,2298.2,2296.9,0.555]
[1770129334554,0.01309929,2297.7,2296.9,0.555]
[1770129334760,0.01309929,2297.9,2296.9,13.49348198]
[1770129334966,0.01309929,2298.1,2297.1,1.08832354]
[1770129335163,0.59970806,2298.2,2297.1,1.08832354]
[1770129335370,0.61280735,2298.2,2296.9,14.04848198]
[1770129335612,0.01309929,2297.5,2296.5,0.555]
[1770129335892,0.01309929,2297.4,2296.5,0.555]
[1770129336051,4.35255712,2297.7,2296.5,1.11]
[1770129336248,0.01309929,2297.4,2296.5,1.11]
[1770129336590,0.01309929,2297.3,2295.5,13.91321061]
[1770129336888,0.01309929,2297.1,2295.5,13.91321061]
[1770129337188,0.22577459,2298.1,2296.2,12.93848198]
[1770129337383,4.35179946,2298.0,2296.4,12.93848198]
[1770129337590,4.36489875,2298.0,2296.5,0.913]
[1770129337754,0.01309929,2297.5,2295.8,13.85148198]
[1770129337949,1.08809192,2297.6,2295.9,1.0888976]
[1770129338151,1.10119121,2297.6,2296.0,12.93848198]
[1770129338597,1.08809192,2297.6,2296.0,12.93848198]
[1770129338811,0.01309929,2297.5,2296.0,12.93848198]
[1770129339095,0.01309929,2297.5,2295.9,1.6438976]
[1770129339096,0.01309929,2297.0,2295.9,0.555]
[1770129339298,0.54796381,2297.5,2296.0,13.49348198]
[1770129339667,0.01309929,2297.2,2296.0,13.49348198]
[1770129339858,0.54796381,2297.5,2296.0,13.49348198]
[1770129340184,1.10128593,2297.4,2296.1,1.08880275]
[1770129340401,1.10128593,2297.4,2296.1,14.02728473]
[1770129340691,1.63722154,2297.5,2296.1,14.02728473]
[1770129340912,0.54906381,2297.5,2296.1,14.02728473]
[1770129341070,0.0011,2297.5,2296.3,12.93848198]
[1770129341458,0.0011,2297.5,2296.3,13.49348198]
[1770129341708,0.0011,2297.7,2296.5,12.95158127]
[1770129341911,0.0011,2298.4,2296.7,12.93848198]
[1770129342114,0.0011,2298.4,2297.4,12.93848198]
[1770129342312,0.0011,2298.4,2297.6,12.93848198]
[1770129342608,0.0011,2299.7,2298.4,12.93848198]
[1770129342923,0.0011,2299.7,2298.0,0.01309929]
[1770129342924,1.08820949,2299.7,2298.6,12.93848198]
[1770129343104,0.01309929,2299.6,2298.6,12.93848198]
[1770129343295,0.01309929,2299.4,2297.9,12.93928198]
[1770129343496,0.01309929,2299.3,2297.9,13.49428198]
[1770129343694,0.55937942,2299.6,2298.1,12.95158127]
[1770129343695,0.54628013,2299.6,2298.1,12.95158127]
[1770129344006,0.54628013,2299.6,2298.6,12.95158127]
[1770129344177,0.0011,2299.7,2298.8,12.93848198]
[1770129344379,0.1113454,2300.8,2299.2,0.01309929]
[1770129344597,0.0011,2301.5,2299.8,12.93848198]
[1770129344810,1.08735197,2301.5,2299.8,12.93848198]
[1770129345012,0.55764366,2301.4,2299.8,13.7032568]
[1770129345180,0.01309929,2300.6,2299.2,0.555]
[1770129345378,0.01309929,2300.0,2299.2,0.555]
[1770129345574,0.01309929,2300.2,2299.2,0.555]
[1770129345808,0.01309929,2300.2,2299.2,1.11]
[1770129346010,0.01309929,2300.2,2298.3,4.35098808]
[1770129346011,0.01309929,2299.4,2298.4,12.93848198]
[1770129346215,1.08726862,2299.4,2298.4,14.02618973]
[1770129346381,0.01309929,2299.6,2298.4,14.02618973]
[1770129346577,0.01309929,2300.1,2298.4,14.02618973]
[1770129346783,0.01309929,2299.8,2298.6,12.93848198]
[1770129347107,0.01309929,2299.7,2298.6,12.93848198]
[1770129347277,0.01309929,2299.1,2298.4,0.555]
[1770129347483,0.01309929,2299.0,2298.4,0.555]
[1770129347701,0.01309929,2299.1,2298.4,0.555]
[1770129348004,0.01309929,2299.3,2298.4,1.11]
[1770129348206,0.01309929,2299.4,2298.4,2.19770744]
[1770129348410,1.08705104,2299.8,2298.4,15.13618942]
[1770129348628,1.63434082,2300.1,2298.4,15.35596016]
[1770129348920,1.0863425,2301.3,2299.5,12.93848198]
[1770129349079,0.0011,2301.5,2299.7,12.93848198]
[1770129349080,1.08632854,2301.4,2299.7,12.93848198]
[1770129349493,0.01309929,2301.3,2299.8,12.93848198]
[1770129349707,0.01309929,2301.0,2299.9,0.912]
[1770129349908,0.01309929,2301.2,2299.9,0.912]
[1770129350104,1.09963064,2300.9,2299.1,12.93848198]
[1770129350333,0.01309929,2300.7,2299.8,1.08702481]
[1770129350516,1.09963064,2300.9,2299.2,12.68714264]
[1770129350691,0.54588554,2300.8,2299.9,13.77413047]
[1770129350897,0.01419929,2301.5,2300.3,12.68714264]
[1770129350898,0.0011,2301.5,2300.3,12.68714264]
[1770129351142,1.08736176,2301.5,2300.4,12.68714264]
[1770129351432,1.08736176,2301.5,2299.9,1.08698783]
[1770129351433,0.01309929,2301.2,2299.9,1.08698783]
[1770129351596,0.55633471,2301.4,2299.9,1.0870004]
[1770129351798,0.54323542,2301.4,2299.9,13.78724233]
[1770129351995,0.54323542,2301.4,2300.2,12.68714264]
[1770129352196,0.54323542,2301.4,2300.2,14.68596938]
[1770129352197,1.0863425,2301.3,2300.2,14.68596938]
[1770129352426,0.59749479,2301.2,2299.9,0.555]
[1770129352594,0.01309929,2301.1,2299.9,0.555]
[1770129352796,0.59859479,2301.2,2299.9,0.555]
[1770129353233,0.59859479,2301.2,2300.2,1.08686066]
[1770129353522,0.59859479,2301.2,2300.2,13.98639887]
[1770129353721,0.0011,2301.2,2300.2,13.99949816]
[1770129354130,1.08549346,2303.1,2301.0,12.9126375]
[1770129354346,1.08549346,2303.1,2301.5,12.9126375]
[1770129354627,0.0011,2303.3,2302.1,12.89953821]
[1770129354813,0.0011,2303.3,2302.2,13.80952653]
[1770129355225,0.0011,2303.3,2302.4,12.9126375]
[1770129355519,0.0011,2303.5,2302.8,12.9126375]
[1770129355706,0.0011,2304.5,2303.4,12.9126375]
[1770129356026,1.08594348,2304.5,2303.5,0.912]
[1770129356260,0.0011,2305.1,2303.7,12.9126375]
[1770129356533,0.22760057,2306.3,2304.7,12.89953821]
[1770129356697,1.08538257,2305.7,2304.7,12.89953821]
[1770129356895,0.01309929,2305.4,2304.2,0.912]
[1770129357117,0.55534531,2305.6,2304.0,12.89953821]
[1770129357329,0.54224602,2305.6,2304.2,12.89953821]
[1770129357639,0.0011,2305.7,2304.6,12.9126375]
[1770129357936,0.0011,2305.7,2304.8,12.89953821]
[1770129358138,0.0011,2305.7,2304.9,13.98418396]
[1770129358300,0.0011,2305.7,2304.9,12.89953821]
[1770129358501,0.0011,2305.7,2304.2,12.89953821]
[1770129358742,0.01309929,2305.6,2304.2,12.89953821]
[1770129358946,0.01309929,2304.8,2303.5,12.89953821]
[1770129359129,0.01309929,2304.5,2303.2,0.911]
[1770129359438,0.01309929,2304.2,2302.8,12.89953821]
[1770129359612,0.01309929,2303.3,2302.1,12.89953821]
[1770129359815,0.01309929,2303.3,2302.3,1.08586554]
[1770129360011,0.01309929,2303.3,2302.3,1.0858633]
[1770129360206,0.01309929,2303.2,2302.1,12.89953821]
[1770129360404,0.1024,2303.5,2302.1,13.98550253]
[1770129360620,0.56728064,2303.5,2302.1,14.89650253]
[1770129360834,0.56728064,2303.5,2302.1,13.98550253]
[1770129360835,0.01309929,2303.2,2302.1,13.98550253]
[1770129361037,0.01309929,2303.2,2300.8,0.01309929]
[1770129361038,0.01309929,2302.5,2301.4,13.81053821]
[1770129361237,0.01309929,2302.8,2301.4,12.89953821]
[1770129361440,0.01309929,2302.1,2301.0,13.98601537]
[1770129361645,1.09837213,2303.6,2301.2,12.89953821]
[1770129361962,0.01309929,2302.9,2301.4,12.89953821]
[1770129362235,1.0853992,2303.3,2301.6,12.89953821]
[1770129362542,1.0853992,2303.3,2301.5,1.08624809]
[1770129362543,1.6394911,2303.5,2301.8,12.89953821]
[1770129362842,0.01309929,2302.7,2301.8,12.89953821]
[1770129363156,0.01309929,2302.2,2301.2,12.89953821]
[1770129363440,0.01309929,2302.2,2299.9,1.12309929]
[1770129363441,0.01309929,2301.5,2300.3,13.98631675]
[1770129363609,0.01309929,2301.8,2300.3,13.98631675]
[1770129363610,0.01309929,2302.6,2300.4,13.98630572]
[1770129363813,0.01309929,2301.8,2300.5,1.83333758]
[1770129364109,0.01309929,2300.8,2299.9,2.19699231]
[1770129364337,0.01309929,2301.0,2299.9,14.00953821]
[1770129364525,0.01309929,2301.0,2299.9,15.09653981]
[1770129364721,0.01309929,2301.8,2300.1,12.90053821]
[1770129364945,0.01309929,2301.1,2300.1,0.001]
[1770129365110,0.01309929,2301.4,2300.1,12.90053821]
[1770129365311,0.01309929,2300.4,2299.9,0.36522821]
[1770129365619,0.01309929,2300.7,2299.9,0.36522821]
[1770129365808,0.01309929,2300.7,2299.9,1.45223018]
[1770129366016,0.01309929,2301.0,2299.9,1.45223018]
[1770129366332,0.01309929,2300.5,2299.9,0.92022821]
[1770129366513,0.01309929,2300.8,2299.9,0.92022821]
[1770129366839,0.01309929,2300.5,2299.9,0.92022821]